fUST/lending_fUST_20250626
["ID","MTS","AMOUNT","RATE_DAILY","PERIOD"]
[367790957,1750931457174,-460.0,0.0001863,2]
[367790959,1750931457184,-460.0,0.0001863,2]
[367790961,1750931457194,-460.0,0.0001863,2]
[367790963,1750931457205,-310.21,0.0001863,2]
[367790965,1750931457215,-571.76,0.0001863,2]
[367790967,1750931457225,-460.0,0.0001863,2]
[367790969,1750931457236,-460.0,0.0001863,2]
[367790971,1750931457245,-460.0,0.0001863,2]
[367790973,1750931457255,-460.0,0.0001863,2]
[367790975,1750931457263,-460.0,0.0001863,2]
[367790977,1750931457273,-460.0,0.0001863,2]
[367790979,1750931457281,-460.0,0.0001863,2]
[367790981,1750931457291,-460.0,0.0001863,2]
[367790983,1750931457301,-849.82,0.0001863,2]
[367790985,1750931457311,-460.0,0.0001863,2]
[367790987,1750931457320,-460.0,0.0001863,2]
[367790989,1750931457330,-460.0,0.0001863,2]
[367790991,1750931457340,-462.49,0.0001863,2]
[367790993,1750931457349,-460.0,0.0001863,2]
[367790995,1750931457359,-460.0,0.0001863,2]
[367790997,1750931457368,-1141.75,0.0001863,2]
[367790999,1750931457377,-333.15,0.0001863,2]
[367791001,1750931457388,-460.0,0.0001863,2]
[367791003,1750931457397,-460.0,0.0001863,2]
[367791005,1750931457406,-801.14,0.0001863,2]
[367791007,1750931457415,-492.26,0.0001863,2]
[367791009,1750931457425,-460.0,0.0001863,2]
[367791011,1750931457434,-460.0,0.0001863,2]
[367791013,1750931457443,-1366.28,0.0001863,2]
[367791015,1750931457453,-1780.45,0.0001863,2]
[367791017,1750931457462,-460.0,0.0001863,2]
[367791019,1750931457471,-350.9,0.0001863,2]
[367791021,1750931457480,-460.0,0.0001863,2]
[367791023,1750931457490,-460.0,0.0001863,2]
[367791025,1750931457499,-460.0,0.0001863,2]
[367791027,1750931457508,-587.64,0.0001863,2]
[367791029,1750931457518,-169.97346394,0.0001863,2]
[367791031,1750931457526,-460.0,0.0001863,2]
[367791033,1750931457535,-389.00971537,0.0001863,2]
[367791035,1750931457545,-460.0,0.0001863,2]
[367791037,1750931457555,-739.92,0.0001863,2]
[367791039,1750931457564,-460.0,0.0001863,2]
[367791041,1750931457574,-463.56,0.0001863,2]
[367791043,1750931457583,-460.0,0.0001863,2]
[367791045,1750931457594,-460.0,0.0001863,2]
[367791047,1750931457604,-460.0,0.0001863,2]
[367791049,1750931457613,-460.0,0.0001863,2]
[367791051,1750931457623,-944.31,0.0001863,2]
[367791053,1750931457633,-1906.58,0.0001863,2]
[367791055,1750931457644,-563.27,0.0001863,2]
[367791057,1750931457654,-2845.9,0.0001863,2]
[367791059,1750931457663,-514.69611994,0.0001863,2]
[367791061,1750931457673,-288.44,0.0001863,2]
[367791063,1750931457682,-460.0,0.0001863,2]
[367791065,1750931457692,-956.87,0.0001863,2]
[367791066,1750931457702,-460.0,0.0001863,2]
[367791069,1750931457713,-460.0,0.0001863,2]
[367791070,1750931457722,-2288.17,0.0001863,2]
[367791072,1750931457732,-580.79,0.0001863,2]
[367791074,1750931457742,-460.0,0.0001863,2]
[367791076,1750931457751,-460.0,0.0001863,2]
[367791078,1750931457761,-1198.56,0.0001863,2]
[367791080,1750931457771,-460.0,0.0001863,2]
[367791082,1750931457781,-1231.48,0.0001863,2]
[367791084,1750931457790,-201.95,0.0001863,2]
[367791086,1750931457799,-460.0,0.0001863,2]
[367791088,1750931457809,-194.646327,0.0001863,2]
[367791090,1750931457819,-194.646327,0.0001863,2]
[367791092,1750931457829,-1166.94,0.0001863,2]
[367791094,1750931457839,-883.45,0.0001863,2]
[367791096,1750931457849,-912.34,0.0001863,2]
[367791098,1750931457859,-773.09,0.0001863,2]
[367791100,1750931457869,-151.0,0.0001863,2]
[367791102,1750931457878,-460.0,0.0001863,2]
[367791104,1750931457889,-151.0,0.0001863,2]
[367791106,1750931457899,-460.0,0.0001863,2]
[367791108,1750931457908,-460.0,0.0001863,2]
[367791110,1750931457918,-460.0,0.0001863,2]
[367791112,1750931457929,-460.0,0.0001863,2]
[367791114,1750931457938,-460.0,0.0001863,2]
[367791116,1750931457948,-460.0,0.0001863,2]
[367791118,1750931457958,-460.0,0.0001863,2]
[367791120,1750931457968,-2940.97,0.0001863,2]
[367791122,1750931457977,-1025.01,0.0001863,2]
[367791124,1750931457987,-460.0,0.0001863,2]
[367791126,1750931457997,-838.22,0.0001863,2]
[367791128,1750931458006,-460.0,0.0001863,2]
[367791130,1750931458016,-460.0,0.0001863,2]
[367791132,1750931458026,-1000.0,0.00018634,2]
[367791134,1750931458036,-1502.78026123,0.00018653,2]
[367791136,1750931458046,-1511.32697788,0.00018653,2]
[367791138,1750931458056,-151.0,0.00018655,2]
[367791140,1750931458066,-176.214753,0.00018655,2]
[367791142,1750931458076,-176.214753,0.00018655,2]
[367791144,1750931458086,-151.0,0.00018655,2]
[367791146,1750931458095,-2550.87992384,0.00018831,2]
[367791148,1750931458106,-1076.51811168,0.000189,2]
[367791150,1750931458115,-1666.97,0.00018904,2]
[367791152,1750931458125,-460.0,0.00018904,2]
[367791154,1750931458135,-460.0,0.00018904,2]
[367791156,1750931458146,-460.0,0.00018904,2]
[367791158,1750931458157,-571.76,0.00018904,2]
[367791160,1750931458167,-460.0,0.00018904,2]
[367791162,1750931458177,-195.64194398,0.00018904,2]
[367791164,1750931458187,-151.0,0.00018904,2]
[367791166,1750931458196,-460.0,0.00018904,2]
[367791168,1750931458206,-460.0,0.00018904,2]
[367791179,1750931458304,-151.0,0.00018904,2]
[367791181,1750931458314,-460.0,0.00018904,2]
[367791183,1750931458325,-294.877351,0.00018904,2]
[367791185,1750931458334,-294.877351,0.00018904,2]
[367791187,1750931458344,-460.0,0.00018904,2]
[367791189,1750931458354,-481.99383847,0.00018904,2]
[367791191,1750931458364,-460.0,0.00018904,2]
[367791193,1750931458374,-151.0,0.00018904,2]
[367791195,1750931458384,-849.82,0.00018904,2]
[367791197,1750931458394,-460.0,0.00018904,2]
[367791199,1750931458403,-381.00286136,0.00018904,2]
[367791201,1750931458412,-599.19020435,0.00018904,2]
[367791202,1750931458422,-460.0,0.00018904,2]
[367791205,1750931458431,-460.0,0.00018904,2]
[367791206,1750931458441,-1141.75,0.00018904,2]
[367791208,1750931458450,-460.0,0.00018904,2]
[367791210,1750931458460,-460.0,0.00018904,2]
[367791212,1750931458469,-801.14,0.00018904,2]
[367791214,1750931458478,-492.26,0.00018904,2]
[367791216,1750931458488,-460.0,0.00018904,2]
[367791218,1750931458497,-460.0,0.00018904,2]
[367791220,1750931458507,-1366.28,0.00018904,2]
[367791222,1750931458517,-1780.45,0.00018904,2]
[367791224,1750931458527,-460.0,0.00018904,2]
[367791226,1750931458537,-460.0,0.00018904,2]
[367791228,1750931458548,-460.0,0.00018904,2]
[367791230,1750931458559,-460.0,0.00018904,2]
[367791232,1750931458569,-587.64,0.00018904,2]
[367791234,1750931458578,-460.0,0.00018904,2]
[367791236,1750931458588,-485.01,0.00018904,2]
[367791238,1750931458598,-739.92,0.00018904,2]
[367791240,1750931458608,-460.0,0.00018904,2]
[367791242,1750931458618,-463.56,0.00018904,2]
[367791244,1750931458628,-460.0,0.00018904,2]
[367791247,1750931458640,-460.0,0.00018904,2]
[367791249,1750931458651,-460.0,0.00018904,2]
[367791251,1750931458661,-460.0,0.00018904,2]
[367791253,1750931458670,-944.31,0.00018904,2]
[367791255,1750931458680,-1906.58,0.00018904,2]
[367791257,1750931458690,-563.27,0.00018904,2]
[367791259,1750931458699,-2845.9,0.00018904,2]
[367791261,1750931458711,-460.0,0.00018904,2]
[367791263,1750931458720,-956.87,0.00018904,2]
[367791265,1750931458731,-460.0,0.00018904,2]
[367791267,1750931458741,-460.0,0.00018904,2]
[367791269,1750931458751,-2288.17,0.00018904,2]
[367791271,1750931458761,-580.79,0.00018904,2]
[367791273,1750931458771,-460.0,0.00018904,2]
[367791275,1750931458780,-460.0,0.00018904,2]
[367791277,1750931458790,-336.418142,0.00018904,2]
[367791279,1750931458799,-1198.56,0.00018904,2]
[367791281,1750931458809,-336.418142,0.00018904,2]
[367791283,1750931458818,-221.26,0.00018904,2]
[367791285,1750931458828,-1231.48,0.00018904,2]
[367791287,1750931458837,-460.0,0.00018904,2]
[367791289,1750931458846,-1166.94,0.00018904,2]
[367791291,1750931458856,-883.45,0.00018904,2]
[367791293,1750931458869,-912.34,0.00018904,2]
[367791295,1750931458878,-773.09,0.00018904,2]
[367791297,1750931458888,-460.0,0.00018904,2]
[367791299,1750931458897,-460.0,0.00018904,2]
[367791301,1750931458907,-460.0,0.00018904,2]
[367791303,1750931458917,-460.0,0.00018904,2]
[367791305,1750931458926,-460.0,0.00018904,2]
[367791307,1750931458936,-460.0,0.00018904,2]
[367791309,1750931458946,-460.0,0.00018904,2]
[367791311,1750931458956,-460.0,0.00018904,2]
[367791313,1750931458966,-2940.97,0.00018904,2]
[367791315,1750931458975,-1025.01,0.00018904,2]
[367791317,1750931458985,-460.0,0.00018904,2]
[367791319,1750931458994,-838.22,0.00018904,2]
[367791321,1750931459004,-457.13057445,0.00018904,2]
[367791323,1750931459013,-153.44296881,0.00018904,2]
[367791325,1750931459022,-151.806325,0.00018986,2]
[367791327,1750931459031,-151.307504,0.00018986,2]
[367791329,1750931459041,-151.0,0.00018986,2]
[367791331,1750931459051,-151.0,0.00018986,2]
[367791333,1750931459061,-151.0,0.00018986,2]
[367791335,1750931459071,-151.0,0.00018986,2]
[367791337,1750931459081,-151.0,0.00018986,2]
[367791339,1750931459090,-196.43247,0.00018986,2]
[367791341,1750931459100,-294.877351,0.00018986,2]
[367791343,1750931459109,-294.877351,0.00018986,2]
[367791345,1750931459119,-212.100818,0.00018986,2]
[367791347,1750931459129,-151.0,0.00018986,2]
[367791349,1750931459140,-176.214753,0.00018986,2]
[367791351,1750931459150,-176.214753,0.00018986,2]
[367791353,1750931459165,-151.0,0.00018986,2]
[367791355,1750931459174,-336.418142,0.00018986,2]
[367791357,1750931459184,-336.418142,0.00018986,2]
[367791359,1750931459194,-194.646327,0.00018986,2]
[367791361,1750931459204,-194.646327,0.00018986,2]
[367791363,1750931459214,-151.0,0.00018986,2]
[367791365,1750931459224,-263.660246,0.00018986,2]
[367791367,1750931459236,-388.0,0.00018986,2]
[367791369,1750931459247,-151.27597907,0.00018986,2]
[367791371,1750931459256,-5000.0,0.00018986,2]
[367791373,1750931459266,-151.0,0.00018986,2]
[367791375,1750931459276,-500.0,0.00018986,2]
[367791377,1750931459286,-151.0,0.00018986,2]
[367791379,1750931459296,-151.0,0.00018986,2]
[367791381,1750931459307,-500.0,0.00018986,2]
[367791383,1750931459317,-151.0,0.00018986,2]
[367791385,1750931459328,-500.0,0.00018986,2]
[367791387,1750931459338,-151.0,0.00018986,2]
[367791389,1750931459347,-500.0,0.00018986,2]
[367791391,1750931459358,-500.0,0.00018986,2]
[367791393,1750931459367,-151.0,0.00018986,2]
[367791395,1750931459376,-500.0,0.00018986,2]
[367791397,1750931459387,-151.0,0.00018986,2]
[367791399,1750931459396,-25000.0,0.00018986,2]
[367791401,1750931459406,-500.0,0.00018986,2]
[367791403,1750931459415,-2438.02774712,0.00018986,2]
[367791405,1750931459425,-151.0,0.00018986,2]
[367791406,1750931459434,-500.0,0.00018986,2]
[367791407,1750931459444,-151.0,0.00018986,2]
[367791408,1750931459453,-500.0,0.00018986,2]
[367791409,1750931459462,-151.0,0.00018986,2]
[367791410,1750931459472,-500.0,0.00018986,2]
[367791411,1750931459483,-151.0,0.00018986,2]
[367791413,1750931459493,-23656.00863629,0.00018986,2]
[367791415,1750931459502,-500.0,0.00018986,2]
[367791417,1750931459511,-151.0,0.00018986,2]
[367791419,1750931459522,-207.4,0.00018986,2]
[367791421,1750931459531,-244.50989766,0.00018986,2]
[367791423,1750931459540,-500.0,0.00018986,2]
[367791425,1750931459550,-500.0,0.00018986,2]
[367791427,1750931459559,-500.0,0.00018986,2]
[367791429,1750931459568,-151.0,0.00018986,2]
[367791431,1750931459578,-500.0,0.00018986,2]
[367791433,1750931459587,-151.0,0.00018986,2]
[367791435,1750931459596,-151.0,0.00018986,2]
[367791437,1750931459606,-500.0,0.00018986,2]
[367791439,1750931459615,-151.0,0.00018986,2]
[367791441,1750931459624,-500.0,0.00018986,2]
[367791443,1750931459635,-500.0,0.00018986,2]
[367791445,1750931459644,-151.0,0.00018986,2]
[367791447,1750931459653,-500.0,0.00018986,2]
[367791449,1750931459662,-500.0,0.00018986,2]
[367791451,1750931459672,-500.0,0.00018986,2]
[367791453,1750931459682,-151.0,0.00018986,2]
[367791455,1750931459691,-151.0,0.00018986,2]
[367791457,1750931459700,-500.0,0.00018986,2]
[367791459,1750931459710,-500.0,0.00018986,2]
[367791461,1750931459719,-273.74990888,0.00018986,2]
[367791463,1750931459728,-151.0,0.00018986,2]
[367791465,1750931459738,-500.0,0.00018986,2]
[367791467,1750931459747,-151.0,0.00018986,2]
[367791469,1750931459758,-500.0,0.00018986,2]
[367791471,1750931459767,-500.0,0.00018986,2]
[367791473,1750931459776,-151.0,0.00018986,2]
[367791475,1750931459785,-500.0,0.00018986,2]
[367791477,1750931459795,-500.0,0.00018986,2]
[367791479,1750931459805,-151.0,0.00018986,2]
[367791481,1750931459814,-500.0,0.00018986,2]
[367791483,1750931459823,-500.0,0.00018986,2]
[367791485,1750931459832,-154.30026337,0.00018986,2]
[367791487,1750931459842,-151.0,0.00018986,2]
[367791489,1750931459851,-500.0,0.00018986,2]
[367791491,1750931459861,-151.0,0.00018986,2]
[367791493,1750931459872,-500.0,0.00018986,2]
[367791495,1750931459882,-500.0,0.00018986,2]
[367791497,1750931459893,-151.0,0.00018986,2]
[367791499,1750931459903,-500.0,0.00018986,2]
[367791502,1750931459914,-500.0,0.00018986,2]
[367791504,1750931459923,-151.0,0.00018986,2]
[367791506,1750931459934,-500.0,0.00018986,2]
[367791508,1750931459944,-500.0,0.00018986,2]
[367791510,1750931459953,-151.0,0.00018986,2]
[367791512,1750931459962,-500.0,0.00018986,2]
[367791514,1750931459971,-500.0,0.00018986,2]
[367791516,1750931459981,-193.91835657,0.00018986,2]
[367791518,1750931459991,-219.65880211,0.00018986,2]
[367791520,1750931460002,-500.0,0.00018986,2]
[367791522,1750931460012,-500.0,0.00018986,2]
[367791524,1750931460022,-500.0,0.00018986,2]
[367791526,1750931460033,-500.0,0.00018986,2]
[367791528,1750931460043,-500.0,0.00018986,2]
[367791530,1750931460054,-500.0,0.00018986,2]
[367791532,1750931460065,-500.0,0.00018986,2]
[367791543,1750931460158,-402.356,0.00019041,2]
[367791545,1750931460178,-500.0,0.00019061,2]
[367791547,1750931460190,-417.243172,0.00019096,2]
[367791549,1750931460201,-2550.87992384,0.00019107,2]
[367791551,1750931460212,-2000.0,0.00019107,2]
[367791553,1750931460223,-2000.0,0.00019123,2]
[367791555,1750931460233,-2000.0,0.0001913,2]
[367791557,1750931460245,-432.68116936,0.00019151,2]
[367791559,1750931460256,-1666.97,0.00019178,2]
[367791561,1750931460266,-358.36176164,0.00019178,2]
[367791563,1750931460276,-460.0,0.00019178,2]
[367791565,1750931460286,-460.0,0.00019178,2]
[367791567,1750931460296,-571.76,0.00019178,2]
[367791569,1750931460307,-460.0,0.00019178,2]
[367791572,1750931460318,-460.0,0.00019178,2]
[367791574,1750931460328,-460.0,0.00019178,2]
[367791575,1750931460339,-460.0,0.00019178,2]
[367791578,1750931460349,-460.0,0.00019178,2]
[367791580,1750931460360,-467.18,0.00019178,2]
[367791582,1750931460370,-849.82,0.00019178,2]
[367791584,1750931460379,-460.0,0.00019178,2]
[367791586,1750931460390,-460.0,0.00019178,2]
[367791588,1750931460400,-1141.75,0.00019178,2]
[367791589,1750931460410,-460.0,0.00019178,2]
[367791591,1750931460419,-460.0,0.00019178,2]
[367791593,1750931460429,-801.14,0.00019178,2]
[367791595,1750931460438,-492.26,0.00019178,2]
[367791597,1750931460447,-460.0,0.00019178,2]
[367791599,1750931460457,-460.0,0.00019178,2]
[367791601,1750931460467,-1366.28,0.00019178,2]
[367791603,1750931460476,-1780.45,0.00019178,2]
[367791605,1750931460485,-460.0,0.00019178,2]
[367791607,1750931460495,-460.0,0.00019178,2]
[367791609,1750931460504,-460.0,0.00019178,2]
[367791612,1750931460514,-460.0,0.00019178,2]
[367791613,1750931460524,-587.64,0.00019178,2]
[367791615,1750931460533,-460.0,0.00019178,2]
[367791617,1750931460544,-739.92,0.00019178,2]
[367791619,1750931460553,-460.0,0.00019178,2]
[367791622,1750931460564,-463.56,0.00019178,2]
[367791623,1750931460573,-460.0,0.00019178,2]
[367791625,1750931460583,-460.0,0.00019178,2]
[367791627,1750931460592,-460.0,0.00019178,2]
[367791629,1750931460601,-460.0,0.00019178,2]
[367791631,1750931460610,-944.31,0.00019178,2]
[367791633,1750931460620,-1906.58,0.00019178,2]
[367791635,1750931460631,-563.27,0.00019178,2]
[367791638,1750931460643,-2845.9,0.00019178,2]
[367791640,1750931460653,-460.0,0.00019178,2]
[367791642,1750931460663,-956.87,0.00019178,2]
[367791644,1750931460674,-460.0,0.00019178,2]
[367791646,1750931460684,-506.24604461,0.00019178,2]
[367791648,1750931460694,-2288.17,0.00019178,2]
[367791650,1750931460704,-580.79,0.00019178,2]
[367791652,1750931460713,-460.0,0.00019178,2]
[367791654,1750931460722,-460.0,0.00019178,2]
[367791656,1750931460731,-1198.56,0.00019178,2]
[367791658,1750931460743,-1231.48,0.00019178,2]
[367791660,1750931460753,-460.0,0.00019178,2]
[367791662,1750931460763,-1166.94,0.00019178,2]
[367791664,1750931460772,-883.45,0.00019178,2]
[367791666,1750931460781,-912.34,0.00019178,2]
[367791668,1750931460790,-773.09,0.00019178,2]
[367791669,1750931460799,-460.0,0.00019178,2]
[367791671,1750931460809,-460.0,0.00019178,2]
[367791673,1750931460819,-460.0,0.00019178,2]
[367791676,1750931460829,-460.0,0.00019178,2]
[367791678,1750931460840,-460.0,0.00019178,2]
[367791679,1750931460849,-460.0,0.00019178,2]
[367791681,1750931460860,-460.0,0.00019178,2]
[367791683,1750931460869,-460.0,0.00019178,2]
[367791686,1750931460879,-2940.97,0.00019178,2]
[367791687,1750931460894,-1025.01,0.00019178,2]
[367791689,1750931460904,-460.0,0.00019178,2]
[367791691,1750931460913,-838.22,0.00019178,2]
[367791693,1750931460923,-29022.9130628,0.00019178,2]
[367791696,1750931460932,-350.106642,0.00019178,2]
[367791697,1750931460942,-151.0,0.0001918,2]
[367791699,1750931460952,-151.0,0.0001918,2]
[367791702,1750931460961,-448.69037263,0.00019206,2]
[367791704,1750931460971,-168.0,0.00019245,2]
[367791706,1750931460980,-465.29191642,0.00019261,2]
[367791707,1750931460990,-153.0,0.00019288,2]
[367791709,1750931461000,-482.50771733,0.00019316,2]
[367791712,1750931461009,-176.214753,0.00019369,2]
[367791714,1750931461020,-176.214753,0.00019369,2]
[367791715,1750931461030,-151.0,0.00019369,2]
[367791717,1750931461039,-500.36050287,0.00019371,2]
[367791719,1750931461049,-2550.87992384,0.00019383,2]
[367791721,1750931461058,-966.0,0.00019388,2]
[367791723,1750931461068,-2161.0,0.00019388,2]
[367791725,1750931461077,-654.0,0.00019388,2]
[367791727,1750931461088,-406.0,0.00019388,2]
[367791729,1750931461098,-151.0,0.00019452,2]
[367791731,1750931461110,-1666.97,0.00019452,2]
[367791733,1750931461120,-460.0,0.00019452,2]
[367791735,1750931461130,-460.0,0.00019452,2]
[367791737,1750931461141,-571.76,0.00019452,2]
[367791739,1750931461152,-460.0,0.00019452,2]
[367791741,1750931461166,-460.0,0.00019452,2]
[367791743,1750931461175,-460.0,0.00019452,2]
[367791745,1750931461185,-1500.0,0.00019452,7]
[367791746,1750931461195,-1500.0,0.00019452,7]
[367791748,1750931461206,-1500.0,0.00019452,7]
[367791751,1750931461216,-1500.0,0.00019452,7]
[367791752,1750931461227,-640.819661,0.00019452,7]
[367791754,1750931461237,-460.0,0.00019452,2]
[367791756,1750931461248,-294.877351,0.00019452,2]
[367791758,1750931461257,-294.877351,0.00019452,2]
[367791760,1750931461267,-460.0,0.00019452,2]
[367791762,1750931461277,-151.0,0.00019452,2]
[367791764,1750931461287,-849.82,0.00019452,2]
[367791766,1750931461297,-460.0,0.00019452,2]
[367791768,1750931461307,-1141.75,0.00019452,2]
[367791770,1750931461316,-460.0,0.00019452,2]
[367791772,1750931461326,-460.0,0.00019452,2]
[367791774,1750931461335,-801.14,0.00019452,2]
[367791776,1750931461345,-492.26,0.00019452,2]
[367791778,1750931461355,-460.0,0.00019452,2]
[367791780,1750931461365,-460.0,0.00019452,2]
[367791782,1750931461374,-1366.28,0.00019452,2]
[367791784,1750931461384,-1780.45,0.00019452,2]
[367791786,1750931461395,-460.0,0.00019452,2]
[367791787,1750931461405,-460.0,0.00019452,2]
[367791789,1750931461414,-338.2,0.00019452,2]
[367791792,1750931461425,-460.0,0.00019452,2]
[367791793,1750931461434,-587.64,0.00019452,2]
[367791795,1750931461445,-460.0,0.00019452,2]
[367791797,1750931461455,-739.92,0.00019452,2]
[367791799,1750931461466,-366.57,0.00019452,2]
[367791801,1750931461476,-463.56,0.00019452,2]
[367791803,1750931461486,-460.0,0.00019452,2]
[367791805,1750931461496,-460.0,0.00019452,2]
[367791807,1750931461506,-460.0,0.00019452,2]
[367791809,1750931461517,-315.78103826,0.00019452,2]
[367791811,1750931461528,-944.31,0.00019452,2]
[367791813,1750931461538,-1906.58,0.00019452,2]
[367791815,1750931461548,-563.27,0.00019452,2]
[367791817,1750931461558,-2845.9,0.00019452,2]
[367791819,1750931461567,-460.0,0.00019452,2]
[367791821,1750931461577,-956.87,0.00019452,2]
[367791823,1750931461588,-2288.17,0.00019452,2]
[367791825,1750931461599,-580.79,0.00019452,2]
[367791827,1750931461610,-460.0,0.00019452,2]
[367791829,1750931461620,-460.0,0.00019452,2]
[367791831,1750931461631,-336.418142,0.00019452,2]
[367791833,1750931461642,-1198.56,0.00019452,2]
[367791835,1750931461653,-336.418142,0.00019452,2]
[367791838,1750931461663,-1231.48,0.00019452,2]
[367791839,1750931461674,-460.0,0.00019452,2]
[367791841,1750931461684,-194.646327,0.00019452,2]
[367791843,1750931461694,-194.646327,0.00019452,2]
[367791845,1750931461703,-1166.94,0.00019452,2]
[367791847,1750931461713,-883.45,0.00019452,2]
[367791849,1750931461723,-912.34,0.00019452,2]
[367791851,1750931461733,-773.09,0.00019452,2]
[367791853,1750931461743,-151.0,0.00019452,2]
[367791855,1750931461752,-460.0,0.00019452,2]
[367791857,1750931461761,-460.0,0.00019452,2]
[367791859,1750931461771,-236.35,0.00019452,2]
[367791861,1750931461780,-460.0,0.00019452,2]
[367791863,1750931461790,-460.0,0.00019452,2]
[367791865,1750931461800,-460.0,0.00019452,2]
[367791866,1750931461809,-460.0,0.00019452,2]
[367791868,1750931461818,-460.0,0.00019452,2]
[367791870,1750931461828,-2940.97,0.00019452,2]
[367791880,1750931461921,-1025.01,0.00019452,2]
[367791882,1750931461932,-603.13,0.00019452,2]
[367791884,1750931461943,-838.22,0.00019452,2]
[367791886,1750931461952,-524.25751634,0.000195,7]
[367791888,1750931461962,-151.0,0.00019534,2]
[367791890,1750931461972,-201.65179822,0.00019534,2]
[367791892,1750931461981,-151.0,0.00019534,2]
[367791894,1750931461990,-151.0,0.00019534,2]
[367791895,1750931462000,-152.6351556,0.00019534,2]
[367791897,1750931462010,-151.8099724,0.00019534,2]
[367791899,1750931462020,-151.0,0.00019534,2]
[367791901,1750931462029,-151.0,0.00019534,2]
[367791903,1750931462040,-151.0,0.00019534,2]
[367791905,1750931462050,-151.0,0.00019534,2]
[367791907,1750931462060,-151.0,0.00019534,2]
[367791909,1750931462071,-5000.0,0.00019534,2]
[367791911,1750931462081,-25000.0,0.00019534,2]
[367791913,1750931462090,-151.0,0.00019561,2]
[367791915,1750931462100,-151.0,0.00019561,2]
[367791917,1750931462110,-213.51501345,0.00019561,2]
[367791919,1750931462120,-151.29765514,0.00019561,2]
[367791920,1750931462131,-587.0,0.00019619,2]
[367791922,1750931462141,-2500.0,0.00019655,2]
[367791924,1750931462152,-2550.87992384,0.00019659,2]
[367791926,1750931462166,-613.77210429,0.00019671,2]
[367791928,1750931462177,-2004.79287362,0.00019678,2]
[367791930,1750931462187,-1666.97,0.00019726,2]
[367791932,1750931462198,-460.0,0.00019726,2]
[367791934,1750931462208,-460.0,0.00019726,2]
[367791936,1750931462217,-571.76,0.00019726,2]
[367791937,1750931462229,-457.26,0.00019726,2]
[367791939,1750931462239,-151.0,0.00019726,2]
[367791942,1750931462250,-460.0,0.00019726,2]
[367791944,1750931462261,-183.436065,0.00019726,2]
[367791946,1750931462272,-460.0,0.00019726,2]
[367791948,1750931462282,-294.877351,0.00019726,2]
[367791949,1750931462292,-294.877351,0.00019726,2]
[367791951,1750931462302,-460.0,0.00019726,2]
[367791953,1750931462311,-849.82,0.00019726,2]
[367791955,1750931462321,-151.0,0.00019726,2]
[367791957,1750931462331,-460.0,0.00019726,2]
[367791959,1750931462341,-1141.75,0.00019726,2]
[367791961,1750931462350,-176.214753,0.00019726,2]
[367791963,1750931462361,-176.214753,0.00019726,2]
[367791965,1750931462371,-460.0,0.00019726,2]
[367791967,1750931462381,-460.0,0.00019726,2]
[367791969,1750931462391,-801.14,0.00019726,2]